bitfinex-derivatives/quotes_BNBF0:USTF0_20250609
["timestamp","ask_amount","ask_price","bid_price","bid_amount"]
[1749466299913,1.08579236,654.26,653.11,1.096]
[1749466300108,1.08579236,654.25,653.11,1.096]
[1749466300308,1.08579236,654.24,653.11,1.096]
[1749466300612,0.30567952,654.28,653.11,1.096]
[1749466300613,1.08579236,654.23,653.11,1.096]
[1749466300908,1.08579236,654.22,653.11,1.096]
[1749466301212,1.08579236,654.21,653.11,1.096]
[1749466301412,1.08579236,654.27,653.11,1.096]
[1749466301611,1.08579236,654.26,653.11,1.096]
[1749466301812,1.08579236,654.25,653.11,1.096]
[1749466302014,1.08579236,654.24,653.11,1.096]
[1749466302209,1.08579236,654.23,653.11,1.096]
[1749466302409,1.08579236,654.22,653.11,1.096]
[1749466302714,1.08579236,654.21,653.11,1.096]
[1749466303009,1.08579236,654.27,653.11,1.096]
[1749466303208,1.08579236,654.26,653.11,1.096]
[1749466303413,1.08579236,654.25,653.11,1.096]
[1749466303713,1.08579236,654.24,653.11,1.096]
[1749466303914,1.08579236,654.27,653.11,1.096]
[1749466304113,1.08579236,654.26,653.11,1.096]
[1749466304307,1.08579236,654.25,653.11,1.096]
[1749466304612,1.08579236,654.24,653.11,1.096]
[1749466304812,1.08579236,654.27,653.11,1.096]
[1749466305012,1.08579236,654.26,653.11,1.096]
[1749466305210,1.08579236,654.25,653.11,1.096]
[1749466305514,1.08579236,654.24,653.11,1.096]
[1749466305718,1.08579236,654.23,653.11,1.096]
[1749466306015,1.39149992,654.22,653.11,1.096]
[1749466306213,1.39150459,654.21,653.11,1.096]
[1749466306417,0.3057169,654.2,653.11,1.096]
[1749466316822,0.3057169,654.2,652.98,0.26621482]
[1749466319426,1.08579236,654.19,652.98,0.26621482]
[1749466319727,1.08579236,654.18,652.98,0.26621482]
[1749466320024,1.08579236,654.17,652.98,0.26621482]
[1749466320224,1.08579236,654.16,652.98,0.26621482]
[1749466320423,1.08579236,654.15,652.99,0.803]
[1749466320622,1.08579236,654.14,652.99,0.803]
[1749466320827,1.08579236,654.13,652.99,0.803]
[1749466321027,1.08579236,654.12,652.99,0.803]
[1749466321227,1.08579236,654.11,652.99,0.803]
[1749466321424,1.08579236,654.1,652.99,0.803]
[1749466321626,1.08579236,654.09,652.99,0.803]
[1749466321825,1.08579236,654.08,652.99,0.803]
[1749466322125,1.08579236,654.19,652.99,0.803]
[1749466322323,1.08579236,654.18,652.99,0.803]
[1749466322525,1.08579236,654.17,652.99,0.803]
[1749466322726,1.08579236,654.16,652.99,0.803]
[1749466323024,1.08579236,654.15,652.99,0.803]
[1749466323328,1.08579236,654.14,652.99,0.803]
[1749466323529,1.08579236,654.13,652.99,0.803]
[1749466323726,1.08579236,654.12,652.99,0.803]
[1749466323926,1.08579236,654.11,652.99,0.803]
[1749466324126,1.08579236,654.1,652.99,0.803]
[1749466324427,1.08579236,654.09,652.99,0.803]
[1749466324633,1.08579236,654.08,652.99,0.803]
[1749466324831,1.08579236,654.07,652.99,0.803]
[1749466325031,1.08579236,654.06,652.99,0.803]
[1749466325232,1.08579236,654.05,652.99,0.803]
[1749466325531,1.08579236,654.04,652.99,0.803]
[1749466325728,1.08579236,654.03,652.99,0.803]
[1749466325932,1.08579236,654.02,652.99,0.803]
[1749466326132,1.08579236,654.01,652.99,0.803]
[1749466326327,1.08579236,654.0,652.99,0.803]
[1749466326529,1.08579236,653.99,652.99,0.803]
[1749466326728,0.3057169,654.2,652.99,0.803]
[1749466326934,1.09571441,654.19,652.99,0.803]
[1749466327135,1.09571441,654.18,652.99,0.803]
[1749466327330,1.09571441,654.17,652.99,0.803]
[1749466327634,0.3057169,654.2,652.99,0.803]
[1749466327635,1.09571441,654.16,652.99,0.803]
[1749466327929,1.09571441,654.15,652.99,0.803]
[1749466328129,1.09571441,654.14,652.99,0.803]
[1749466328329,1.09571441,654.13,652.99,0.803]
[1749466328530,1.09571441,654.12,652.99,0.803]
[1749466328730,1.09571441,654.11,652.99,0.803]
[1749466329033,0.3057169,654.2,652.99,0.803]
[1749466329931,1.0934322,654.19,652.99,0.803]
[1749466330833,1.0934322,654.18,652.99,0.803]
[1749466332430,0.3057169,654.2,652.99,0.803]
[1749466333533,0.3057169,654.2,652.98,0.26621482]
[1749466333735,0.3057169,654.2,652.98,0.57250291]
[1749466337138,0.3057169,654.2,652.99,0.76]
[1749466338039,1.09549488,654.19,652.99,0.76]
[1749466338437,0.3057169,654.2,652.99,0.76]
[1749466338641,0.3057169,654.2,652.99,1.0662834]
[1749466338841,0.3057169,654.2,653.0,0.30627871]
[1749466348454,1.0952434,654.19,653.0,0.30627871]
[1749466348653,1.0952434,654.18,653.0,0.30627871]
[1749466348849,1.0952434,654.17,653.0,0.30627871]
[1749466349154,1.0952434,654.16,653.0,0.30627871]
[1749466349454,1.0952434,654.15,653.0,0.30627871]
[1749466349652,1.0952434,654.14,653.0,0.30627871]
[1749466349856,1.0952434,654.13,653.0,0.30627871]
[1749466350057,1.0952434,654.12,653.0,0.30627871]
[1749466350253,1.0952434,654.11,653.0,0.30627871]
[1749466350458,1.0952434,654.1,653.0,0.30627871]
[1749466350659,1.0952434,654.09,653.0,0.30627871]
[1749466350856,1.0952434,654.08,653.0,0.30627871]
[1749466351060,1.0952434,654.07,653.0,0.30627871]
[1749466351256,1.0952434,654.06,653.0,0.30627871]
[1749466351460,1.0952434,654.05,653.0,0.30627871]
[1749466351764,1.0952434,654.04,653.0,0.30627871]
[1749466351956,1.0952434,654.03,653.0,0.30627871]
[1749466352261,1.0952434,654.02,653.0,0.30627871]
[1749466352463,1.0952434,654.01,653.0,0.30627871]
[1749466352660,1.0952434,654.0,653.0,0.30627871]
[1749466352860,1.0952434,653.99,653.0,0.30627871]
[1749466353061,1.0952434,654.19,653.0,0.30627871]
[1749466353261,1.0952434,654.18,653.0,0.30627871]
[1749466353462,1.0952434,654.17,653.0,0.30627871]
[1749466353763,1.0952434,654.16,653.0,0.30627871]
[1749466353961,1.0952434,654.15,653.0,0.30627871]
[1749466354159,1.0952434,654.14,653.0,0.30627871]
[1749466354358,1.0952434,654.13,653.0,0.30627871]
[1749466354562,0.3057169,654.2,653.0,0.30627871]
[1749466354563,1.0952434,654.12,653.0,0.30627871]
[1749466354862,1.0952434,654.11,653.0,0.30627871]
[1749466355058,1.0952434,654.1,653.0,0.30627871]
[1749466355259,1.0952434,654.09,653.0,0.30627871]
[1749466355463,1.0952434,654.08,653.0,0.30627871]
[1749466355663,1.0952434,654.07,653.0,0.30627871]
[1749466355859,1.0952434,654.06,653.0,0.30627871]
[1749466356163,1.0952434,654.05,653.0,0.30627871]
[1749466356363,1.0952434,654.19,653.0,0.30627871]
[1749466356663,1.0952434,654.18,653.0,0.30627871]
[1749466356860,1.0952434,654.17,653.0,0.30627871]
[1749466357061,1.0952434,654.16,653.0,0.30627871]
[1749466357262,1.0952434,654.15,653.0,0.30627871]
[1749466357462,1.0952434,654.14,653.0,0.30627871]
[1749466357758,1.0952434,654.13,653.0,0.30627871]
[1749466357957,1.0952434,654.12,653.01,1.123]
[1749466358159,1.0952434,654.11,653.01,1.123]
[1749466358359,1.0952434,654.1,653.01,1.123]
[1749466358559,1.0952434,654.09,653.01,1.123]
[1749466358760,1.0952434,654.08,653.01,1.123]
[1749466358959,1.0952434,654.07,653.01,1.123]
[1749466359161,1.0952434,654.06,653.01,1.123]
[1749466359362,0.3057169,654.2,653.01,1.123]
[1749466360162,1.0952434,654.19,653.01,1.123]
[1749466361867,1.0952434,654.18,653.01,1.123]
[1749466362167,1.0952434,654.17,653.01,1.123]
[1749466362464,1.0952434,654.19,653.01,1.123]
[1749466362663,1.0952434,654.18,653.01,1.123]
[1749466362866,1.0952434,654.19,653.01,1.123]
[1749466363062,1.0952434,654.18,653.01,1.123]
[1749466363266,1.0952434,654.19,653.01,1.123]
[1749466364262,0.3057169,654.2,653.01,1.123]
[1749466364766,1.0952434,654.19,653.01,1.123]
[1749466365469,0.3057169,654.2,653.01,1.123]
[1749466367864,1.4009603,654.2,653.01,1.123]
[1749466368067,0.3057169,654.2,653.01,1.123]
[1749466369174,1.4009603,654.2,653.01,1.123]
[1749466369374,1.0952434,654.19,653.01,1.123]
[1749466369571,1.0952434,654.18,653.01,1.123]
[1749466369769,1.0952434,654.17,653.01,1.123]
[1749466370076,1.0952434,654.16,653.01,1.123]
[1749466370269,1.0952434,654.15,653.01,1.123]
[1749466370472,1.0952434,654.14,653.01,1.123]
[1749466370670,1.0952434,654.13,653.01,1.123]
[1749466370873,1.39807661,654.2,653.01,1.123]
[1749466370874,1.0952434,654.12,653.01,1.123]
[1749466371071,1.0952434,654.11,653.01,1.123]
[1749466371273,1.0952434,654.1,653.01,1.123]
[1749466371474,1.0952434,654.09,653.01,1.123]
[1749466371674,1.0952434,654.08,653.01,1.123]
[1749466371971,1.0952434,654.07,653.01,1.123]
[1749466372172,1.0952434,654.06,653.01,1.123]
[1749466372370,1.0952434,654.05,653.01,1.123]
[1749466372571,1.0952434,654.19,653.01,1.123]
[1749466372772,1.40096965,654.18,653.01,1.123]
[1749466372977,1.40097432,654.17,653.01,1.123]
[1749466373174,1.40097899,654.16,653.01,1.123]
[1749466373374,1.0952434,654.15,653.01,1.123]
[1749466373578,1.0952434,654.14,653.01,1.123]
[1749466373774,1.0952434,654.13,653.01,1.123]
[1749466373980,1.0952434,654.12,653.01,1.123]
[1749466374177,1.0952434,654.11,653.01,1.123]
[1749466374479,1.0952434,654.1,653.01,1.123]
[1749466374675,1.0952434,654.09,653.01,1.123]
[1749466374976,1.0952434,654.08,653.0,0.30627871]
[1749466375178,1.0952434,654.07,653.0,0.30627871]
[1749466375379,1.0952434,654.06,653.0,0.30627871]
[1749466375577,1.0952434,654.15,653.0,0.30627871]
[1749466375778,1.0952434,654.14,653.0,0.30627871]
[1749466375975,1.0952434,654.13,653.0,0.30627871]
[1749466376179,1.0952434,654.12,653.0,0.30627871]
[1749466376379,1.0952434,654.11,653.0,0.30627871]
[1749466376679,1.0952434,654.1,653.0,0.30627871]
[1749466376876,1.0952434,654.09,653.0,0.30627871]
[1749466377179,1.0952434,654.08,653.0,0.30627871]
[1749466377379,1.0952434,654.07,653.0,0.30627871]
[1749466377576,1.0952434,654.06,653.01,0.751]
[1749466377781,1.0952434,654.15,653.01,0.751]
[1749466378080,1.0952434,654.14,653.01,0.751]
[1749466378279,1.0952434,654.13,653.01,0.751]
[1749466378476,1.0952434,654.12,653.01,0.751]
[1749466378681,0.30573559,654.16,653.01,0.751]
[1749466378682,1.0952434,654.11,653.01,0.751]
[1749466378981,1.0952434,654.1,653.01,0.751]
[1749466379181,1.0952434,654.09,653.01,0.751]
[1749466379481,1.0952434,654.15,653.01,0.751]
[1749466379681,1.0952434,654.14,653.01,0.751]
[1749466379978,1.0952434,654.13,653.01,0.751]
[1749466380179,1.0952434,654.12,653.01,0.751]
[1749466380382,1.0952434,654.11,653.01,0.751]
[1749466380682,1.0952434,654.1,653.01,0.751]
[1749466380880,1.0952434,654.09,653.01,0.751]
[1749466381079,1.0952434,654.08,653.01,0.751]
[1749466381279,1.0952434,654.07,653.01,0.751]
[1749466381480,1.0952434,654.06,653.01,0.751]
[1749466381780,1.0952434,654.05,653.01,0.751]
[1749466381986,1.0952434,654.04,653.01,0.751]
[1749466382284,1.0952434,654.15,653.01,0.751]
[1749466382584,1.0952434,654.14,653.01,0.751]
[1749466382781,1.0952434,654.13,653.01,0.751]
[1749466382980,1.0952434,654.12,653.01,0.751]
[1749466383186,1.0952434,654.11,653.01,0.751]
[1749466383481,1.0952434,654.1,653.01,0.751]
[1749466383681,1.0952434,654.09,653.01,0.751]
[1749466383985,0.30573559,654.16,653.01,0.751]
[1749466383986,1.0952434,654.08,653.01,0.751]
[1749466384285,1.0952434,654.07,653.01,0.751]
[1749466384481,1.0952434,654.06,653.01,0.751]
[1749466384781,0.30573559,654.16,653.01,0.751]
[1749466384782,1.0952434,654.05,653.01,0.751]
[1749466384980,1.0952434,654.15,653.01,0.751]
[1749466385285,1.0952434,654.14,653.01,0.751]
[1749466385480,1.0952434,654.13,653.01,0.751]
[1749466385782,1.0952434,654.12,653.01,0.751]
[1749466386081,1.0952434,654.11,653.01,0.751]
[1749466386285,1.0952434,654.1,653.01,0.751]
[1749466386484,1.0952434,654.09,653.01,0.751]
[1749466386784,1.0952434,654.08,653.01,0.751]
[1749466386986,1.0952434,654.07,653.01,0.751]
[1749466387283,1.0952434,654.06,653.01,0.751]
[1749466387481,1.0952434,654.15,653.01,0.751]
[1749466387682,1.0952434,654.14,653.01,0.751]
[1749466387981,1.0952434,654.13,653.01,0.751]
[1749466388182,1.0952434,654.12,653.01,0.751]
[1749466388382,1.0952434,654.11,653.01,0.751]
[1749466388686,1.0952434,654.1,653.01,0.751]
[1749466388886,1.0952434,654.09,653.01,0.751]
[1749466389086,1.0952434,654.08,653.01,0.751]
[1749466389281,1.0952434,654.07,653.01,0.751]
[1749466389481,1.0952434,654.06,653.01,0.751]
[1749466389785,1.0952434,654.15,653.01,0.751]
[1749466389982,1.0952434,654.14,653.01,0.751]
[1749466390285,1.0952434,654.13,653.01,0.751]
[1749466390483,1.0952434,654.12,653.01,0.751]
[1749466390783,1.0952434,654.11,653.01,0.751]
[1749466390985,1.0952434,654.1,653.01,0.751]
[1749466391183,1.0952434,654.09,653.01,0.751]
[1749466391387,1.0952434,654.08,653.01,0.751]
[1749466391686,1.0952434,654.15,653.01,0.751]
[1749466391886,0.30573559,654.16,653.01,0.751]
[1749466391887,1.0952434,654.14,653.01,0.751]
[1749466392186,1.0952434,654.13,653.01,0.751]
[1749466392383,1.0952434,654.12,653.01,0.751]
[1749466392687,1.0952434,654.11,653.01,0.751]
[1749466392884,1.0952434,654.1,653.01,0.751]
[1749466393089,1.0952434,654.09,653.01,0.751]
[1749466393285,1.0952434,654.08,653.01,0.751]
[1749466393485,1.0952434,654.07,653.01,0.751]
[1749466393688,1.0952434,654.15,653.01,0.751]
[1749466393889,1.0952434,654.14,653.01,0.751]
[1749466394086,1.0952434,654.13,653.01,0.751]
[1749466394285,1.0952434,654.12,653.01,0.751]
[1749466394588,1.09945082,654.11,653.01,0.751]
[1749466394885,1.09945082,654.1,653.01,0.751]
[1749466395090,1.09945082,654.09,653.01,0.751]
[1749466395292,1.09945082,654.08,653.01,0.751]
[1749466395491,1.09945082,654.15,653.01,0.751]
[1749466395687,1.40519576,654.14,653.01,0.751]
[1749466395888,1.40520044,654.13,653.01,0.751]
[1749466396187,1.09945082,654.12,653.01,0.751]
[1749466396390,1.09945082,654.11,653.01,0.751]
[1749466396591,1.09945082,654.1,653.01,0.751]
[1749466396893,0.30574962,654.13,653.01,0.751]
[1749466396894,1.09945082,654.09,653.01,0.751]
[1749466397190,1.09945082,654.08,653.01,0.751]
[1749466397388,1.09945082,654.07,653.01,0.751]
[1749466397590,1.09945082,654.06,653.01,0.751]
[1749466397795,0.30574962,654.13,653.01,0.751]
[1749466397796,1.09945082,654.05,653.01,0.751]
[1749466397995,1.09945082,654.04,653.01,0.751]
[1749466398192,1.09945082,654.12,653.01,0.751]
[1749466398390,1.09945082,654.11,653.01,0.751]
[1749466398595,1.09945082,654.1,653.01,0.751]
[1749466398793,1.09945082,654.09,653.01,0.751]
[1749466398996,1.09945082,654.08,653.01,0.751]
[1749466399192,1.09945082,654.07,653.01,0.751]
[1749466399392,1.09945082,654.06,653.01,0.751]
[1749466399589,1.09945082,654.05,653.01,0.751]
[1749466399792,1.09945082,654.04,653.01,0.751]
[1749466399990,0.30574962,654.13,653.01,0.751]
[1749466399991,1.09945082,654.03,653.01,0.751]
[1749466400193,1.09945082,654.12,653.01,0.751]
[1749466400396,1.09945082,654.11,653.01,0.751]
[1749466400597,1.09945082,654.1,653.01,0.751]
[1749466400897,1.09945082,654.09,653.01,0.751]
[1749466401096,1.09945082,654.08,653.01,0.751]
[1749466401396,1.09945082,654.07,653.01,0.751]
[1749466401596,1.09945082,654.06,653.01,0.751]
[1749466401798,1.09945082,654.05,653.01,0.751]
[1749466401997,0.2662474,653.81,653.01,0.751]
[1749466404696,0.2662474,653.81,653.0,0.30627871]
[1749466408303,0.2662474,653.81,653.01,0.974]
[1749466433419,0.2662474,653.81,653.0,0.30627871]
[1749466436720,0.2662474,653.81,653.01,0.757]
[1749466447831,0.2662474,653.81,653.0,0.30627871]
[1749466450234,0.2662474,653.81,653.01,0.67]
[1749466466741,0.2662474,653.81,653.02,3.80363246]
[1749466467542,0.2662474,653.81,653.01,4.47363246]
[1749466468936,1.09945082,653.8,653.01,0.67]
[1749466469138,0.2662474,653.81,653.01,0.67]
[1749466469337,1.10322594,653.8,653.01,0.67]
[1749466469641,1.1032182,653.8,653.01,0.67]
[1749466469841,0.2662474,653.81,653.01,0.67]
[1749466478253,0.2662474,653.81,653.0,0.30627871]
[1749466481951,0.2662474,653.81,653.01,0.7]
[1749466497258,0.2662474,653.81,653.02,0.30626933]
[1749466500060,0.2662474,653.81,653.03,3.80363246]
[1749466500460,0.2662474,653.81,653.02,0.30626933]
[1749466506071,0.2662474,653.81,653.03,0.26621176]
[1749466506668,0.2662474,653.81,653.04,0.602]
[1749466509870,0.30574962,654.13,653.04,0.602]
[1749466510072,0.26618936,653.92,653.04,0.602]
[1749466510674,0.26618936,653.92,653.05,0.30625526]
[1749466529196,0.26618936,653.92,653.06,0.864]
[1749466529492,0.26618936,653.92,653.07,0.30624588]
[1749466531994,0.26618936,653.92,653.11,3.80363246]
[1749466533395,0.26618936,653.92,653.12,3.80363246]
[1749466533794,0.26618936,653.92,653.11,3.80363246]
[1749466534799,0.26618936,653.92,653.12,3.80363246]
[1749466536097,0.26618936,653.92,653.13,3.80363246]
[1749466537803,0.26618936,653.92,653.14,3.80363246]
[1749466538397,0.26618936,653.92,653.13,3.80363246]
[1749466538600,0.26618936,653.92,653.14,3.80363246]
[1749466540103,0.26618936,653.92,653.2,3.80363246]
[1749466541400,0.26618936,653.92,653.18,3.80363246]
[1749466541802,0.26618936,653.92,653.22,3.80363246]
[1749466543602,0.26618936,653.92,653.17,3.80363246]
[1749466544000,0.26618936,653.92,653.18,3.80363246]
[1749466544399,0.26618936,653.92,653.19,3.80363246]
[1749466545006,0.26618936,653.92,653.21,3.80363246]
[1749466545400,0.26618936,653.92,653.19,3.80363246]
[1749466545705,1.14546184,654.55,653.19,3.80363246]
[1749466545899,0.26615679,654.01,653.16,3.80363246]
[1749466546100,1.10301916,654.53,653.16,4.10983614]
[1749466546305,1.40858659,654.52,653.19,3.80363246]
[1749466546506,0.26611812,654.01,653.19,3.80363246]
[1749466546707,1.10301916,654.5,653.19,3.80363246]
[1749466546907,0.26611506,654.04,653.19,4.10982208]
[1749466547103,0.26611506,654.04,653.2,0.30618493]
[1749466547308,0.30558144,654.49,653.2,4.10981739]
[1749466547509,0.26610896,654.06,653.2,4.10981739]
[1749466547705,0.30558144,654.49,653.22,3.80363246]
[1749466547908,0.30558144,654.49,653.22,4.10980802]
[1749466548208,0.26610794,654.06,653.26,3.80363246]
[1749466548407,0.30558144,654.49,653.26,3.80363246]
[1749466548607,0.26609573,654.18,653.25,3.80363246]
[1749466549009,0.26609573,654.18,653.22,0.30617556]
[1749466553715,0.26609573,654.18,653.23,0.606]
[1749466561623,1.1023821,654.4,653.23,0.606]
[1749466561823,1.1023821,654.39,653.23,0.606]
[1749466562022,1.1023821,654.48,653.23,0.606]
[1749466562220,1.1023821,654.47,653.23,0.606]
[1749466562420,1.1023821,654.46,653.23,0.606]
[1749466562621,1.1023821,654.45,653.23,0.606]
[1749466562824,1.1023821,654.44,653.23,0.606]
[1749466563026,1.1023821,654.43,653.23,0.606]
[1749466563320,1.1023821,654.42,653.23,0.606]
[1749466563525,1.1023821,654.41,653.23,0.606]
[1749466563727,1.1023821,654.4,653.23,0.606]
[1749466564026,1.1023821,654.48,653.23,0.606]
[1749466564321,1.1023821,654.47,653.23,0.606]
[1749466564524,1.1023821,654.46,653.23,0.606]
[1749466564724,0.30558144,654.49,653.23,0.606]
[1749466564725,1.1023821,654.45,653.23,0.606]
[1749466565021,1.1023821,654.44,653.23,0.606]
[1749466565225,1.1023821,654.43,653.23,0.606]
[1749466565424,1.1023821,654.42,653.23,0.606]
[1749466565624,1.1023821,654.41,653.23,0.606]
[1749466565826,1.1023821,654.48,653.23,0.606]
[1749466566027,1.1023821,654.47,653.23,0.606]
[1749466566226,1.1023821,654.46,653.23,0.606]
[1749466566426,1.1023821,654.45,653.23,0.606]
[1749466566622,1.1023821,654.44,653.23,0.606]
[1749466566822,1.1023821,654.43,653.23,0.606]
[1749466567123,1.1023821,654.42,653.23,0.606]
[1749466567325,1.1023821,654.41,653.23,0.606]
[1749466567524,1.1023821,654.48,653.23,0.606]
[1749466567728,1.1023821,654.47,653.23,0.606]
[1749466567928,1.1023821,654.46,653.23,0.606]
[1749466568223,1.1023821,654.45,653.23,0.606]
[1749466568524,1.1023821,654.44,653.23,0.606]
[1749466568729,1.1023821,654.43,653.22,0.30617556]
[1749466568927,1.1023821,654.42,653.22,0.30617556]
[1749466569123,1.1023821,654.48,653.22,0.30617556]
[1749466569326,1.1023821,654.47,653.22,0.30617556]
[1749466569526,1.1023821,654.46,653.22,0.30617556]
[1749466569731,1.1023821,654.45,653.22,0.30617556]
[1749466569930,1.1023821,654.44,653.22,0.30617556]
[1749466570227,1.1023821,654.43,653.22,0.30617556]
[1749466570430,1.1023821,654.42,653.22,0.30617556]
[1749466570627,1.1023821,654.41,653.22,0.30617556]
[1749466570827,1.1023821,654.4,653.22,0.30617556]
[1749466571026,1.1023821,654.39,653.22,0.30617556]
[1749466571227,1.1023821,654.48,653.22,0.30617556]
[1749466571530,1.1023821,654.47,653.22,0.30617556]
[1749466571726,1.1023821,654.46,653.22,0.30617556]
[1749466571930,1.1023821,654.45,653.23,0.849]
[1749466572130,1.1023821,654.44,653.24,0.30616618]
[1749466572330,1.1023821,654.43,653.24,0.30616618]
[1749466572531,0.30558144,654.49,653.24,0.30616618]
[1749466572532,1.1023821,654.48,653.24,0.30616618]
[1749466572729,1.1023821,654.47,653.24,0.30616618]
[1749466572928,1.1023821,654.46,653.24,0.30616618]
[1749466573132,1.1023821,654.45,653.24,0.30616618]
[1749466573333,1.1023821,654.44,653.24,0.30616618]
[1749466573532,1.1023821,654.43,653.24,0.30616618]
[1749466573729,1.1023821,654.48,653.24,0.30616618]
[1749466573933,0.30558144,654.49,653.24,0.30616618]
[1749466573934,1.1023821,654.47,653.24,0.30616618]
[1749466574133,1.1023821,654.46,653.24,0.30616618]
[1749466574431,1.1023821,654.45,653.24,0.30616618]
[1749466574732,1.1023821,654.44,653.24,0.30616618]
[1749466574930,1.1023821,654.48,653.24,0.30616618]
[1749466575234,1.1023821,654.47,653.24,0.30616618]
[1749466575428,1.1023821,654.46,653.24,0.30616618]
[1749466575734,1.1023821,654.45,653.24,0.30616618]
[1749466575934,1.1023821,654.44,653.24,0.30616618]
[1749466576134,1.1023821,654.48,653.24,0.30616618]
[1749466576334,0.30558144,654.49,653.24,0.30616618]
[1749466576335,1.1023821,654.47,653.24,0.30616618]
[1749466576532,1.1023821,654.46,653.24,0.30616618]
[1749466576736,1.1023821,654.48,653.24,0.30616618]
[1749466577036,1.1023821,654.47,653.24,0.30616618]
[1749466577335,1.1023821,654.46,653.24,0.30616618]
[1749466577635,1.1023821,654.48,653.24,0.30616618]
[1749466577935,1.1023821,654.47,653.24,0.30616618]
[1749466578231,0.2660937,654.18,653.24,0.30616618]
[1749466583037,0.2660937,654.18,653.27,3.80363246]
[1749466583234,0.2660937,654.18,653.28,0.30614744]
[1749466584836,0.2660937,654.18,653.3,3.80363246]
[1749466586241,0.2660937,654.18,653.28,4.1097799]
[1749466587042,0.2660937,654.18,653.28,0.30614744]
[1749466589842,0.2660937,654.18,653.28,4.1097799]
[1749466590847,0.2660937,654.18,653.29,3.80363246]
[1749466591049,0.2660937,654.18,653.28,0.30614744]
[1749466593849,0.2660937,654.18,653.29,0.67]
[1749466607262,0.2660937,654.18,653.3,3.80363246]
[1749466607959,0.2660937,654.18,653.29,0.67]
[1749466608663,0.2660937,654.18,653.29,4.47363246]
[1749466609060,0.2660937,654.18,653.29,0.67]
[1749466609966,0.2660937,654.18,653.29,4.47363246]
[1749466611460,0.2660937,654.18,653.29,0.67]
[1749466614768,0.2660937,654.18,653.28,0.30614744]
[1749466617670,0.2660937,654.18,653.28,4.1097799]
[1749466618069,0.2660937,654.18,653.29,0.801]
[1749466618567,0.2660937,654.18,653.29,4.60463246]
[1749466618969,0.2660937,654.18,653.31,3.80363246]
[1749466619969,0.2660937,654.18,653.32,3.80363246]
[1749466620773,0.2660937,654.18,653.31,3.80363246]
[1749466621771,0.2660937,654.18,653.33,3.80363246]
[1749466624070,0.2660937,654.18,653.43,3.80363246]
[1749466626573,0.2660937,654.18,653.45,3.80363246]
[1749466627178,0.2660937,654.18,653.44,3.80363246]
[1749466627775,0.2660937,654.18,653.45,3.80363246]
[1749466628476,0.2660937,654.18,653.46,3.80363246]
[1749466628881,0.2660937,654.18,653.48,3.80363246]
[1749466629977,0.2660937,654.18,653.52,3.80363246]
[1749466631976,0.2660937,654.18,653.37,3.80363246]
[1749466633079,0.2660937,654.18,653.38,3.80363246]
[1749466635678,0.2660937,654.18,653.31,3.80363246]
[1749466639783,0.2660937,654.18,653.28,0.30614744]
[1749466641882,0.2660937,654.18,653.36,3.80363246]
[1749466642482,0.2660937,654.18,653.37,3.80363246]
[1749466643383,0.2660937,654.18,653.3,3.80363246]
[1749466644783,0.2660937,654.18,653.29,0.933]
[1749466645687,0.2660937,654.18,653.31,3.80363246]
[1749466647287,0.2660937,654.18,653.32,3.80363246]
[1749466648884,0.2660937,654.18,653.31,3.80363246]
[1749466650986,0.2660937,654.18,653.29,0.933]
[1749466670806,0.2660937,654.18,653.28,0.30614744]
[1749466674408,0.2660937,654.18,653.29,0.635]
[1749466688518,0.2660937,654.18,653.28,0.30614744]
[1749466691316,0.2660937,654.18,653.29,0.943]
[1749466721345,0.2660937,654.18,653.28,0.30614744]
[1749466724546,0.2660937,654.18,653.29,0.601]
[1749466736648,0.2660937,654.18,653.28,0.30614744]
[1749466740056,0.2660937,654.18,653.29,0.731]
[1749466750166,0.2660937,654.18,653.32,3.80363246]
[1749466751666,0.2660937,654.18,653.39,3.80363246]
[1749466752368,0.2660937,654.18,653.41,3.80363246]
[1749466753264,0.2660937,654.18,653.43,3.80363246]
[1749466753868,0.2660937,654.18,653.31,3.80363246]
[1749466754367,0.2660937,654.18,653.28,0.30614744]
[1749466755265,0.2660937,654.18,653.29,0.91]
[1749466769578,0.2660937,654.18,653.29,4.71363246]